Cogmind - Beta 15 @@@ ROGUE MODE // 2025.05.13 @ 08:24:47 Player: OJ Result: Destroyed by 8A-VXA(R) with Subdweller Laser Performance ------------- Evolutions (0) 0 Regions Visited (3) 600 Robots Destroyed (33) 165 Value Destroyed (913) 913 Prototype IDs (0) 0 Alien Tech Used (0) 0 Bonus (0) 0 TOTAL SCORE: 1678 Bonus ------- None Cogmind --------- Core Integrity 0/250 Matter 290/300 Energy 200/200 System Corruption 4% Temperature Cool (6) Movement Treading (320) Ox2 Location -10/Subcaves Parts ------- > --- POWER (1) -------- Subdweller Power Source > --- PROPULSION (2) --- Light Treads Improved Treads > --- UTILITY (2) ------ Heat Sink Huge Storage Unit > --- WEAPON (2) ------- Makeshift Hammer > --- INVENTORY (25) --- Ion Engine Ion Engine Light Treads Light Treads Light Treads Large Matter Pod (150) Grenade Launcher Grenade Launcher Peak State ------------ > --- POWER ------------ Subdweller Power Source > --- PROPULSION ------- Improved Treads Improved Treads > --- UTILITY ---------- Heat Sink Huge Storage Unit > --- WEAPON ----------- Plasma Flamer Makeshift Hammer > --- INVENTORY -------- Ion Engine Ion Engine Light Treads Light Treads Light Treads Light Treads Large Matter Pod Grenade Launcher Grenade Launcher [Rating: 17] Favorites ----------- Power Light Nuclear Core Engine Ion Engine Power Core Light Nuclear Core Propulsion Improved Treads Treads Improved Treads Utility Huge Storage Unit Device Heat Sink Storage Huge Storage Unit Weapon Spread Laser Energy Gun Spread Laser Special Weapon Plasma Flamer Impact Weapon Makeshift Hammer Build | -11 -10 -10 -10 ------- Run | Yrd Mat Min Sub Slots Evolved . | . . . . Power . | . . . . Propulsion . | . . . . Utility . | . . . . Weapon . | . . . . Parts Attached 25 | 6 6 3 10 Power 5 | 1 . 2 2 Engine 3 | 1 . . 2 Core 2 | . . 2 . Reactor . | . . . . Propulsion 7 | 2 2 . 3 Treads 7 | 2 2 . 3 Leg . | . . . . Wheel . | . . . . Hover . | . . . . Flight . | . . . . Utility 5 | 1 2 1 1 Device 3 | . 1 1 1 Storage 2 | 1 1 . . Processor . | . . . . Hackware . | . . . . Protection . | . . . . Artifact . | . . . . Weapon 8 | 2 2 . 4 Energy Gun 6 | 2 2 . 2 Energy Cannon . | . . . . Ballistic Gun . | . . . . Ballistic Cannon . | . . . . Launcher . | . . . . Special Weapon 1 | . . . 1 Impact Weapon 1 | . . . 1 Slashing Weapon . | . . . . Piercing Weapon . | . . . . Special Melee Weapon . | . . . . Unidentified Prototypes . | . . . . Parts Lost 12 | . . 2 10 Power 2 | . . 1 1 Propulsion 3 | . . . 3 Utility 2 | . . 1 1 Weapon 5 | . . . 5 Highest Loss Streak 6 | . . 1 6 To Critical Strikes 1 | . . . 1 Average Backups 12 | . 9 15 12 Power 1 | . 1 2 1 Propulsion 5 | . 4 7 4 Utility 1 | . . 2 1 Weapon 3 | . 2 3 3 Tool/Special . | . . . . Unused Backups 5 | . . . 5 Power . | . . . . Propulsion 2 | . . . 2 Utility 1 | . . . 1 Weapon 2 | . . . 2 Tool/Special . | . . . . Average Slot Usage (%) 94 | . 88 99 94 Engine 7 | . 14 . 9 Core 6 | . . 13 4 Treads 26 | . 28 28 23 Device 10 | . 3 14 13 Storage 14 | . 14 14 14 Energy Gun 24 | . 27 28 17 Impact Weapon 2 | . . . 9 Peak Build Rating 17 | 6 13 15 17 Average Rating 13 | 4 11 14 14 On Entrance 8 | . 6 13 15 Naked Turns . | . . . . Heaviest Build 92 | 14 92 92 92 Greatest Support 46 | 40 46 46 46 Greatest Overweight (x) 4 | 4 1 3 3 Average Overweight (x) . | . . 1 1 Largest Inventory Capacity 25 | 8 25 25 25 Average Capacity 22 | 7 18 25 25 Most Carried 17 | 1 14 16 17 Average Carried 12 | . 9 15 11 Final Capacity 25 | 8 25 25 25 Final Carried 16 | 1 14 16 8 Class Distribution -------------------- 100% | Mutant Dominant Class ---------------- Mutant | -10/Materials Mutant | -10/Mines Mutant | -10/Subcaves Resources | -11 -10 -10 -10 ----------- Run | Yrd Mat Min Sub Matter Collected 659 | 257 231 52 119 Remotely . | . . . . Salvage Created 940 | . 567 183 190 Parts 50 | . 33 11 6 Haulers Intercepted 2 | . 2 . . Recyclers Shooed 1 | . 1 . . Parts Field Recycled . | . . . . Retrieved Matter . | . . . . Parts Self-Destructed 4 | . . . 4 Prevented . | . . . . Kills | -11 -10 -10 -10 ------- Run | Yrd Mat Min Sub Combat Hostiles Destroyed 30 | . 16 9 5 Guns 28 | . 16 9 3 Classes Destroyed 8 | . 5 1 2 Hauler 2 | . 2 . . Recycler 1 | . 1 . . Watcher 3 | . 3 . . Swarmer 6 | . 6 . . Grunt 17 | . 10 6 1 Sentry 1 | . . . 1 Subdweller 3 | . . . 3 Assembled 3 | . . 3 . Best Kill Streak 5 | . 5 2 2 Combat Bots Only 3 | . 3 2 2 Max Kills in Single Turn 1 | . 1 1 1 Gunslinging . | . . . . Exploded . | . . . . Melee . | . . . . Uniques/NPCs Destroyed . | . . . . Combat | -11 -10 -10 -10 -------- Run | Yrd Mat Min Sub Hostile Shots Fired 153 | . 58 25 70 Missed 38 | . 18 4 16 Hits 115 | . 40 21 54 Melee 3 | . . 3 . Projectile 112 | . 40 18 54 Critical Strikes 3 | . . 1 2 Part Disruptions 2 | . . 2 . Damage Taken 1788 | . 426 267 1095 Core 267 | . 83 22 162 Absorbed by Shields . | . . . . Regen/Repaired (Parts) 66 | . 66 . . Core Remaining (%) 100 | 100 . . . Volleys Fired 86 | . 44 21 21 Largest 2 | . 2 2 2 Hottest 165 | . 130 130 165 Shots Fired 147 | . 71 38 38 Gun 143 | . 71 38 34 Cannon . | . . . . Launcher . | . . . . Special 4 | . . . 4 Kinetic . | . . . . Thermal 147 | . 71 38 38 Explosive . | . . . . Electromagnetic . | . . . . Robot Hit Streak 25 | . 15 13 25 Robot Miss Streak 11 | . 6 11 3 Penetration Max . | . . . . Secondary Targets . | . . . . Shots Hit Robots 151 | . 64 34 53 Core Hits 159 | . 88 56 15 Critical Kills . | . . . . Critical Parts Destroyed 1 | . . . 1 Critical Strikes 2 | . . . 2 Smash 2 | . . . 2 Melee Attacks 29 | . . . 29 Impact 29 | . . . 29 Slashing . | . . . . Piercing . | . . . . Sneak Attacks . | . . . . Combat Hostiles . | . . . . Follow-up Attacks . | . . . . Damage Inflicted 2211 | . 816 431 964 Guns 1441 | . 815 431 195 Cannons . | . . . . Explosions . | . . . . Melee 769 | . . . 769 Ramming 1 | . 1 . . Kinetic . | . . . . Thermal 1441 | . 815 431 195 Explosive . | . . . . Electromagnetic . | . . . . Impact 769 | . . . 769 Slashing . | . . . . Piercing . | . . . . Highest Corruption 4 | . . 4 4 Average Corruption 4 | . . 4 4 Corruption Purged . | . . . . Corruption Blocked . | . . . . Effects 33 | . . 15 18 Message Errors 6 | . . 3 3 Matter Fused 6 | . . 3 3 Heat Flow Errors 6 | . . 1 5 Energy Discharges 4 | . . 2 2 Parts Fused 1 | . . 1 . Data Loss (minor) 5 | . . 2 3 Data Loss (major) 1 | . . . 1 Misfires 3 | . . 2 1 Alerts 1 | . . 1 . Overload Shots . | . . . . Overflow Damage 142 | . . . 142 Projectiles . | . . . . Explosions . | . . . . Melee 142 | . . . 142 Knockbacks 1 | . . . 1 Impact 1 | . . . 1 Kinetic . | . . . . Secondary . | . . . . Self-Inflicted Damage . | . . . . Shots . | . . . . Rammed 1 | . 1 . . Targets Rammed 1 | . 1 . . Kicked . | . . . . Crushed . | . . . . Highest Temperature 408 | . 408 207 322 Average Temperature 110 | . 133 76 78 Received Heat Transfer 724 | . 189 211 324 Effects 3 | . 2 . 1 Interference 2 | . 2 . . Short Circuit 1 | . . . 1 Siege Activations . | . . . . Martial Activations . | . . . . Shielding Activations . | . . . . Robots Disrupted . | . . . . Combat Hostiles . | . . . . Robots Corrupted 2 | . . . 2 Combat Hostiles 2 | . . . 2 Parts Fried 3 | . . . 3 Impact Corruptions 5 | . . . 5 Robots Melted . | . . . . Combat Hostiles . | . . . . Parts Melted 1 | . . . 1 Heat Transferred 1830 | . 1015 565 250 Parts Sabotaged . | . . . . Parts Stolen . | . . . . Parts Stripped . | . . . . Power Chain Reactions . | . . . . Alert | -11 -10 -10 -10 ------- Run | Yrd Mat Min Sub Maximum Alert Level . | . . . . Low Security (%) 100 | 100 100 100 . Level 1 . | . . . . Level 2 . | . . . . Level 3 . | . . . . Level 4 . | . . . . Level 5 . | . . . . High Security . | . . . . Max Security . | . . . . Peak Influence 119 | . 119 78 . Initial 18 | . . 18 . Average 32 | . 59 8 . Influence Increases 668 | . 488 140 40 Destroy 0b10 Robot/C 480 | . 320 120 40 Destroy 0b10 Robot/NC 30 | . 30 . . Destroy Leader 110 | . 90 20 . Successful Hack 18 | . 18 . . Lose Combat Pursuer 30 | . 30 . . Influence Decreases 668 | . 439 189 40 Entered New Map 31 | . . 31 . Time Decay 627 | . 439 148 40 Lost Part 10 | . . 10 . Squads Dispatched 4 | . 4 . . Investigation 3 | . 3 . . Extermination . | . . . . Reinforcement 1 | . 1 . . Assault . | . . . . Garrison . | . . . . Intercept . | . . . . Searches Triggered . | . . . . Construction Impeded . | . . . . Haulers Reinforced . | . . . . Active Scanning Responses . | . . . . Cargo Convoy Interrupts . | . . . . Stealth | -11 -10 -10 -10 --------- Run | Yrd Mat Min Sub Distress Signals 1 | . 1 . . Communications Jammed . | . . . . Distress Signals . | . . . . Times Spotted 40 | . 23 9 8 Peak Tracking Total 5 | . 5 3 2 Tactical Retreats 4 | . 2 1 1 Traps | -11 -10 -10 -10 ------- Run | Yrd Mat Min Sub Traps Triggered 2 | . 2 . . Indirectly . | . . . . Trap Hack Attempts . | . . . . Triggered . | . . . . Disarmed . | . . . . Reprogrammed . | . . . . Reused . | . . . . Traps Extracted . | . . . . Installed . | . . . . Triggered . | . . . . Machines | -11 -10 -10 -10 ---------- Run | Yrd Mat Min Sub Machines Disabled . | . . . . Max in Single Turn . | . . . . Machines Repaired . | . . . . Machines Dismantled . | . . . . Machines Sabotaged . | . . . . Overloaded Fab Kills . | . . . . Hacking | -11 -10 -10 -10 --------- Run | Yrd Mat Min Sub Machines Accessed 7 | . 7 . . Terminals 6 | . 6 . . Fabricators . | . . . . Repair Stations 1 | . 1 . . Recycling Units . | . . . . Scanalyzers . | . . . . Garrison Access . | . . . . Total Hacks 23 | . 23 . . Successful 13 | . 13 . . Failed 9 | . 9 . . Catastrophic . | . . . . Database Lockouts 1 | . 1 . . Manual 20 | . 20 . . Terminals 21 | . 21 . . Fabricators . | . . . . Repair Stations 2 | . 2 . . Recycling Units . | . . . . Scanalyzers . | . . . . Garrison Access . | . . . . Terminal Hacks 3 | . 3 . . Robot Analysis 2 | . 2 . . Terminal Index 1 | . 1 . . Fabricator Hacks . | . . . . Repair Station Hacks 2 | . 2 . . Scan Component 1 | . 1 . . Repair 1 | . 1 . . Recycling Unit Hacks . | . . . . Scanalyzer . | . . . . Garrison Access Hacks . | . . . . Unauthorized Hacks 8 | . 8 . . Terminals 8 | . 8 . . Botnet 4 | . 4 . . Skim 4 | . 4 . . Fabricators . | . . . . Repair Stations . | . . . . Recycling Units . | . . . . Scanalyzers . | . . . . Garrison Access . | . . . . Data Cores Recovered . | . . . . Used . | . . . . Hacking Detections 7 | . 7 . . Full Trace Events 4 | . 4 . . Feedback Events . | . . . . Feedback Blocked . | . . . . Robot Schematics Acquired . | . . . . Robots Built . | . . . . Authchips . | . . . . Time . | . . . . Total Robot Build Rating . | . . . . Part Schematics Acquired . | . . . . Parts Built . | . . . . Authchips . | . . . . Time . | . . . . Total Part Build Rating . | . . . . Parts Repaired 1 | . 1 . . Time 32 | . 32 . . Parts Recycled . | . . . . Recycled Matter . | . . . . Retrieved Matter . | . . . . Retrieved Components . | . . . . Parts Scanalyzed . | . . . . Part Schematics Acquired . | . . . . Parts Damaged . | . . . . Bothacking | -11 -10 -10 -10 ------------ Run | Yrd Mat Min Sub Used RIF Installer . | . . . . Robots Hacked . | . . . . Non-combat . | . . . . Combat . | . . . . Robot Hacks Applied . | . . . . Relay Couplers Released . | . . . . Fabnet Peak Effective % . | . . . . Robots Rewired . | . . . . Allies Hacked . | . . . . Hacks Repelled . | . . . . Allies | -11 -10 -10 -10 -------- Run | Yrd Mat Min Sub Total Allies 1 | . . 1 . Largest Group 1 | . . 1 . Highest-Rated Group 31 | . . 31 . Highest-Rated Ally 31 | . . 31 . Total Orders . | . . . . Ally Attacks . | . . . . Total Damage . | . . . . Kills . | . . . . Allies Corrupted . | . . . . Allies Melted . | . . . . Intel | -11 -10 -10 -10 ------- Run | Yrd Mat Min Sub Active Infowar (turns) . | . . . . Robot Analysis Total 2 | . 2 . . Derelict Logs Recovered 2 | . . 1 1 Drone Launches . | . . . . Drone Recoveries . | . . . . Exploration | -11 -10 -10 -10 ------------- Run | Yrd Mat Min Sub Turns Passed 3843 | 62 1333 1361 1087 Spaces Moved 1247 | 34 459 419 335 Core 15 | 15 . . . Treads 1232 | 19 459 419 335 Legs . | . . . . Wheels . | . . . . Hover . | . . . . Flight . | . . . . Fastest Speed 50 | 50 160 240 240 Average Speed 232 | 155 202 240 272 Slowest Speed 400 | 250 240 400 400 Overloaded Moves . | . . . . Propulsion Burnouts . | . . . . Robots Hopped . | . . . . Potential Cave-ins . | . . . . Cave-ins Triggered . | . . . . Exploration Rate (%) 47 | 5 74 85 27 Regions Visited 3 Branch Regions 2 Pre-discovered Areas 1 | . . . 1 Known Exits Taken . | . . . . Unknown Exits Taken 3 | 1 1 1 . Scrap Searched 1 | . . 1 . Spaces Dug . | . . . . Terrain Destroyed . | . . . . Melee . | . . . . Projectile . | . . . . AOE . | . . . . Terrain Rammed . | . . . . Walls Destroyed . | . . . . Machines Disabled . | . . . . Actions | -11 -10 -10 -10 --------- Run | Yrd Mat Min Sub Total 2006 | 40 790 737 439 Wait 595 | . 264 292 39 Move 1244 | 33 458 418 335 Hop . | . . . . Pick Up 16 | 1 11 3 1 Fast Attach 11 | 6 5 . . Attach 12 | . . 2 10 Detach . | . . . . Swap 8 | . 4 1 3 Drop 4 | . 3 . 1 Fire 86 | . 44 21 21 Melee 29 | . . . 29 Ram . | . . . . Kick . | . . . . Crush 1 | . 1 . . Escape Stasis . | . . . . Rewire . | . . . . Trap . | . . . . Miscellaneous . | . . . . Route ------- -11/Scrapyard -10/Materials (discovered 2 exits: [*Mat] / [*Min]) -10/Mines (discovered 2 exits: [*Mat] / [*Sub]) -10/Subcaves History --------- Turn | Location | Event 25 | -11/Scrapyard | Discovered new exit (range 15) 63 | -11/Scrapyard | Entered Materials 316 | -10/Materials | Build established: Mutant 406 | -10/Materials | Central database locked down 943 | -10/Materials | Repaired Spread Laser 1157 | -10/Materials | Discovered new exit (range 4) 1350 | -10/Materials | Discovered new exit (range 16) 1396 | -10/Materials | Entered Mines 1650 | -10/Mines | Discovered new exit (range 11) 1658 | -10/Mines | Received a Mining Laser from a helpful Derelict 1761 | -10/Mines | Excavation squad dispatched 1761 | -10/Mines | A large section of the Mines collapsed 2011 | -10/Mines | Excavation squad dispatched 2177 | -10/Mines | YI-UF0 nonchalantly dropped a Grenade Launcher on the ground 2203 | -10/Mines | Learned Materials non-interactive machine intel 2277 | -10/Mines | Discovered new exit (range 5) 2591 | -10/Mines | A weapon hastily lodged in a ceiling crevice suddenly fell to the ground 2757 | -10/Mines | Entered Subcaves 2810 | -10/Subcaves | Shifting Twisted Machinery released Flamer 2832 | -10/Subcaves | Shifting Twisted Machinery released Mak. Hammer 2849 | -10/Subcaves | Learned location of Recycling (-9) 2943 | -10/Subcaves | Shifting Twisted Machinery released Sub. Power Source 2983 | -10/Subcaves | Shifting Twisted Machinery released Sub. Monowheel 3059 | -10/Subcaves | Core integrity fell below 50% 3147 | -10/Subcaves | Lost 6 parts (1p1n1u3w) 3149 | -10/Subcaves | Core integrity fell below 20% 3844 | -10/Subcaves | Destroyed by 8A-VXA(R) with Subdweller Laser Last Messages --------------- 03762_ Destroyed Disposable Heat Sink. 03762_ JE-QWA(R) system corrupted by crushing effect. 03763_ JE-QWA(R) system terminally corrupted. 03763_ Sub. Optics fried. 03763_ Sub. Beam Cannon fried. 03763_ Sub. Monowheel fried. 03764_ Acquired 14 matter. 03771_ P|O&V:1FN ADS#F%9#H7FZGRFNMN 03792_ Spread Laser destroyed. 03796_ Destroyed Sub. Laser. 03796_ WO-XHA(R) system corrupted by crushing effect. 03797_ WO-XHA(R) affixes Scrap Shield Fragment to Scrap Shield. 03801_ System corrupted: Matter fused (-9). 03809_ Acquired 19 matter. 03822_ Plasma Flamer destroyed. 03825_ TVVJ00HTOTDAAS4H%NYCCW|Q|F 03825_ 8A-VXA(R) knocked back. 03832_ Imp. Treads destroyed. 03843_ Destroyed Sub. Optics. 03843_ 8A-VXA(R) system corrupted by crushing effect. Map ----- +----------------------------------------------------+ | ?????????????????????????????????????????????????? | | ?????????????????????????????????????????????????? | | ?????????????????????????????????????????????????? | | ?????????????????????????????????????????????????? | | ?????????????????????????????????????????????????? | | ?????????????????????????????????????????????????? | | ?????????????????????????????????????????????????? | | ?????????????????????????????????????????????????? | | ?????????????????????????????????????????????????? | | ?????????????????????????????????????????????????? | | ?????????????????????????????????????????????????? | | ??????????????????????########???????????????????? | | ??????????????????????# ######???#####??????? | | ??????????????????????# #??## ##???### | | ???????????????????????# #???# #? #### # | | ???????????????????????##### ###??## ### | | ???????????????????????????## ###### ## ## | | ???????????????????????????## ## # ## | | ??????????????????????????## | | ?????????????????????????## | | ?????????????????????????#"" # ##### | | ?????????????????????????#"""""" " ####???## | | ?????????????????????????#"""### """" "#???????## | | ???????????????????????###""#??#&& ""#????????# | | ???????????????????????#R""#?###%#### "#???????? | | ??????????????????????## @"###" ##??# ##???????? | | ???????????????# "#### " #"" "##??#####????????? | | ????????????????# " " """##??????????????? | | ????????????????## "" "" "" ""#??????????????? | | ?????????????????# """ ## " "#??????????????? | | ?????????????????# " ### "" "#?????????????? | | ?????????????????#" ## "#?## "" #????????????? | | ?????????????????" #?## "R??# """ #????????????? | | ??????????????????????# ""?? "" "???????????? | | ??????????????????????# ??? "" ""??????????? | | ??????????????????????# " ???? # "?" "??????????? | | ??????????????????????# "?????## "?" "??????????? | | ??????????????????????##????????? "??????????????? | | ?????????????????????????????????##??????????????? | | ?????????????????????????????????????????????????? | | ?????????????????????????????????????????????????? | | ?????????????????????????????????????????????????? | | ?????????????????????????????????????????????????? | | ?????????????????????????????????????????????????? | | ?????????????????????????????????????????????????? | | ?????????????????????????????????????????????????? | | ?????????????????????????????????????????????????? | | ?????????????????????????????????????????????????? | | ?????????????????????????????????????????????????? | | ?????????????????????????????????????????????????? | +----------------------------------------------------+ Best States ------------- Heat Dissipation 35 Energy Generation 15 Energy Capacity 250 Matter Stores 300 Matter Capacity 300 Sight Range 16 Terrain Scan Density 10 Evasion (%) 40 Recoil Reduction 2 Item Schematics ----------------- None Robot Schematics ------------------ None Fabricated ------------ Nothing Repaired ---------- Spread Laser | 17% | -10/Materials Alien Tech Used ----------------- None Achievements -------------- None Challenges ------------ None Game ------ Seed CobblerEtherialChainsword Manual? 0 Play Time 00:23:21 Cumulative 101.2 hours Start 2025.05.13 @ 05:44:39 End 2025.05.13 @ 08:24:47 Sessions 3 Manual Loads 0 Difficulty Rogue Special Mode None Game No. 89 Rogue 89 Adventurer 0 Explorer 0 Win Type - Total 0 Types 0/0/0/0/0/0/0/0/0/0 Lore% 29 Gallery% 49 Achievement% 49 Wizard Run 0 Options --------- Layout 0 ASCII 0 Keyboard 0 Movement Mouse Keybinds 0 Fullscreen 1 Font 18/SmallcapsGlow Map View 76x50 Zoom Use 0% Tactical HUD 1 Map Filters NONE Filters NONE Steam 1 RUN: f0eb5f8d-e2fe-45bc-b138-273b1c960b3c